bitfinex/quotes_ETHUSD_20241106
["timestamp","ask_amount","ask_price","bid_price","bid_amount"]
[1730852558869,4.09275,2443.4,2443.0,0.01874132]
[1730852559097,4.09275,2443.4,2443.2,0.01]
[1730852559098,0.818524,2443.3,2443.2,0.01]
[1730852559670,0.818524,2443.3,2443.0,0.01]
[1730852559671,4.911344,2443.3,2443.0,0.01]
[1730852559869,4.911344,2443.3,2443.2,0.01]
[1730852560069,0.818524,2443.3,2443.2,0.01]
[1730852560370,4.911354,2443.3,2443.0,0.01874132]
[1730852560695,4.9935314,2443.2,2443.0,0.01]
[1730852561479,9.0866414,2443.2,2443.0,0.01]
[1730852561729,4.9934814,2443.2,2442.8,0.01]
[1730852562029,4.9934814,2443.2,2442.8,0.01874132]
[1730852562388,0.9004014,2443.2,2442.8,0.01874132]
[1730852562591,8.18556,2443.4,2443.0,0.00874132]
[1730852562592,4.09274,2443.4,2443.0,0.00874132]
[1730852562988,0.8294,2443.5,2443.2,0.00874132]
[1730852563313,4.09267,2443.4,2443.2,0.00874132]
[1730852563514,9.09242,2443.6,2443.2,0.00874132]
[1730852563717,9.09242,2443.6,2443.2,0.01874132]
[1730852563914,10.5430212,2443.6,2443.2,0.01874132]
[1730852564113,4.09257,2443.5,2443.2,0.01874132]
[1730852564487,4.09266,2443.4,2443.2,0.01874132]
[1730852565386,4.09266,2443.4,2443.2,0.01]
[1730852565634,8.18545,2443.4,2443.2,0.01]
[1730852565930,0.818545,2443.3,2443.2,0.01]
[1730852566126,5.5430312,2443.6,2443.2,0.01]
[1730852566333,5.0,2443.4,2443.2,0.01]
[1730852566728,4.09282,2443.3,2443.2,0.01]
[1730852567841,4.09317,2443.1,2442.8,0.01874132]
[1730852567986,4.09349,2442.9,2442.8,0.01]
[1730852568186,1.318666,2442.9,2442.6,0.82194132]
[1730852568431,5.412246,2442.9,2442.8,0.01]
[1730852568804,1.318666,2442.9,2442.8,0.01]
[1730852569496,9.09326,2443.1,2442.8,0.01]
[1730852569702,9.09326,2443.1,2442.8,0.01874132]
[1730852570317,9.09326,2443.1,2442.8,0.01]
[1730852570519,4.09335,2443.0,2442.8,0.01]
[1730852570800,4.09335,2443.0,2442.8,0.01874132]
[1730852571221,5.0,2443.1,2442.8,0.01874132]
[1730852571429,6.395663,2443.1,2442.8,0.01874132]
[1730852571606,10.488863,2443.1,2442.8,0.01874132]
[1730852571827,6.395663,2443.1,2442.8,0.01874132]
[1730852572146,1.395663,2443.1,2442.8,0.01874132]
[1730852572444,4.86317,2443.4,2443.0,0.01874132]
[1730852572947,5.0,2443.5,2443.0,4.11205132]
[1730852573305,9.6354812,2443.6,2443.0,4.11205132]
[1730852573306,5.5430212,2443.6,2443.2,0.01]
[1730852573423,5.0,2443.3,2443.2,0.01]
[1730852574018,9.09285,2443.3,2443.2,0.01]
[1730852574327,5.0,2443.3,2443.2,0.01]
[1730852575344,4.0925,2443.5,2443.2,0.01]
[1730852575555,9.09244,2443.6,2443.2,0.01]
[1730852575868,5.8309952,2444.2,2443.8,0.00874132]
[1730852576150,0.58309952,2444.1,2443.8,0.00874132]
[1730852576350,0.0605952,2444.2,2443.8,4.11070132]
[1730852576552,4.1519852,2444.2,2443.8,0.01874132]
[1730852576754,4.1519852,2444.2,2443.5,4.09241]
[1730852576755,0.0605952,2444.2,2444.1,0.82194132]
[1730852576958,0.0605952,2444.2,2444.1,0.8132]
[1730852577111,0.0605952,2444.2,2444.1,0.01]
[1730852577315,0.0605952,2444.2,2444.1,0.01874132]
[1730852577861,0.0605952,2444.2,2444.1,0.01]
[1730852578161,4.56708072,2444.2,2444.1,0.01]
[1730852578367,8.18309,2444.1,2443.9,0.01]
[1730852578655,4.09156,2444.1,2443.8,0.01874132]
[1730852578856,5.47577072,2444.2,2443.8,0.01874132]
[1730852579157,4.72068707,2444.1,2443.8,0.01874132]
[1730852579361,4.72067707,2444.1,2443.8,0.01874132]
[1730852579716,8.81225707,2444.1,2443.8,0.01874132]
[1730852579913,4.72067707,2444.1,2443.8,0.01874132]
[1730852580117,4.09167,2444.0,2443.8,0.01874132]
[1730852580356,4.09182,2443.9,2443.8,0.01874132]
[1730852580762,4.09158,2444.1,2443.8,0.01874132]
[1730852580929,5.47577072,2444.2,2444.1,4.91902132]
[1730852580930,0.0605952,2444.2,2444.1,4.91902132]
[1730852581133,0.0605952,2444.2,2444.1,4.95164264]
[1730852581367,0.0605952,2444.2,2444.1,0.01]
[1730852581582,4.1520452,2444.2,2443.9,0.00874132]
[1730852581724,4.1520452,2444.2,2444.0,0.01]
[1730852581931,4.1520452,2444.2,2444.1,0.00874132]
[1730852581932,0.0605952,2444.2,2444.1,0.00874132]
[1730852582761,4.1519052,2444.2,2444.1,0.00874132]
[1730852582934,0.0605952,2444.2,2444.1,0.00874132]
[1730852583830,4.1519052,2444.2,2444.1,0.00874132]
[1730852584031,0.88490172,2444.2,2444.1,0.00874132]
[1730852584623,0.0605952,2444.2,2444.1,0.00874132]
[1730852585419,0.0605952,2444.2,2444.1,0.81754132]
[1730852586752,0.0605952,2444.2,2444.1,4.90902132]
[1730852586962,0.0605952,2444.2,2444.1,5.46902132]
[1730852587773,0.0605952,2444.2,2444.1,40.46902132]
[1730852588068,0.0605952,2444.2,2444.1,44.55056193]
[1730852588279,5.0,2445.4,2445.3,0.00874132]
[1730852588280,4.08931,2445.4,2445.3,0.00874132]
[1730852588484,4.9649952,2445.5,2445.3,0.00874132]
[1730852588621,0.0605952,2445.5,2445.3,0.81754132]
[1730852588828,0.0605952,2446.7,2446.5,0.01]
[1730852589049,4.1477752,2446.7,2446.6,0.00874132]
[1730852589247,9.97124672,2446.7,2446.2,0.01]
[1730852589472,9.97124672,2446.7,2446.3,0.00874132]
[1730852589473,9.97128672,2446.7,2446.3,0.00874132]
[1730852589675,4.08742,2446.6,2446.3,0.00874132]
[1730852589874,4.08749,2446.5,2446.3,0.00874132]
[1730852590021,4.08763,2446.4,2446.3,0.00874132]
[1730852590225,4.905142,2446.4,2446.0,0.8188]
[1730852590424,4.905142,2446.4,2446.0,0.01]
[1730852590425,4.08797,2446.2,2446.0,0.01]
[1730852590626,4.0883,2446.0,2445.9,0.00874132]
[1730852591021,5.0,2445.6,2445.3,0.01]
[1730852591226,5.0,2445.6,2445.3,0.01874132]
[1730852591425,5.908866,2445.6,2445.1,0.00874132]
[1730852591665,4.08931,2445.4,2445.0,0.01]
[1730852591883,4.08931,2445.4,2444.8,0.8088]
[1730852591884,4.08961,2445.3,2444.8,0.8188]
[1730852592207,9.997896,2445.6,2445.1,0.00874132]
[1730852592400,9.997896,2445.6,2445.3,0.01]
[1730852592547,4.08931,2445.4,2445.1,0.01874132]
[1730852592742,4.08931,2445.4,2445.3,0.01]
[1730852592949,4.08953,2445.3,2445.1,0.00874132]
[1730852593764,4.08947,2445.3,2445.2,0.01]
[1730852594268,4.08947,2445.3,2445.1,0.00874132]
[1730852594608,4.08981,2445.1,2445.0,0.01874132]
[1730852594790,4.08975,2445.2,2445.0,0.01874132]
[1730852595099,5.0,2445.3,2445.0,0.01874132]
[1730852595508,5.0,2445.6,2445.5,0.01]
[1730852595792,5.0,2445.6,2444.8,4.90902]
[1730852595793,4.08947,2445.3,2445.1,0.00874132]
[1730852595998,0.990401,2445.6,2445.3,0.00874132]
[1730852596182,4.08926,2445.5,2445.4,0.01]
[1730852596580,4.08943,2445.4,2445.3,0.00874132]
[1730852596781,4.08926,2445.5,2445.4,0.01]
[1730852597159,9.08883,2445.7,2445.4,0.01]
[1730852597468,4.08883,2445.7,2445.6,0.00874132]
[1730852597997,4.08883,2445.7,2445.4,0.01]
[1730852598212,4.08914,2445.5,2445.4,0.01]
[1730852598553,4.08837,2446.0,2445.7,0.01874132]
[1730852598872,4.08776,2446.4,2445.9,0.01]
[1730852599111,0.8152,2446.0,2445.6,0.01]
[1730852599251,4.08847,2445.9,2445.8,0.01]
[1730852599658,4.08864,2445.8,2445.6,0.01]
[1730852599859,4.0888,2445.7,2445.6,0.01]
[1730852600160,4.0888,2445.7,2445.6,0.01874132]
[1730852600403,4.0888,2445.7,2445.6,0.01]
[1730852600606,4.08901,2445.6,2445.4,0.01874132]
[1730852601105,4.906614,2445.7,2445.6,0.01]
[1730852601305,4.906614,2445.7,2445.4,0.01874132]
[1730852601507,4.08914,2445.5,2445.4,0.01874132]
[1730852601796,4.906614,2445.7,2445.4,0.01874132]
[1730852602007,4.08853,2445.9,2445.7,0.01]
[1730852602192,4.08822,2446.1,2445.7,0.01]
[1730852602193,4.08822,2446.1,2445.9,0.00874132]
[1730852602906,4.08832,2446.0,2445.9,0.00874132]
[1730852603106,4.08822,2446.1,2445.9,0.00874132]
[1730852603614,4.08842,2446.0,2445.9,0.00874132]
[1730852603900,4.08764,2446.4,2446.2,0.01]
[1730852604085,4.5878,2446.3,2446.2,0.01]
[1730852604286,4.5878,2446.3,2446.1,0.00874132]
[1730852604489,4.08797,2446.2,2446.1,0.00874132]
[1730852604669,4.08814,2446.1,2446.0,0.8188]
[1730852604874,4.08842,2446.0,2445.7,0.00874132]
[1730852605079,4.08842,2446.0,2445.9,0.01]
[1730852605293,10.770962,2446.1,2445.7,0.00874132]
[1730852605294,10.770962,2446.1,2445.7,0.01874132]
[1730852605478,4.08853,2445.9,2445.7,0.01874132]
[1730852605811,6.682812,2446.1,2445.7,0.01]
[1730852605812,5.867612,2446.1,2445.7,0.01]
[1730852605963,4.08897,2445.6,2445.5,0.01]
[1730852606362,4.08918,2445.5,2445.4,0.01]
[1730852606604,4.08897,2445.6,2445.2,0.01874132]
[1730852606824,4.08947,2445.3,2445.2,0.01]
[1730852606966,4.08928,2445.5,2445.2,0.01]
[1730852607188,5.488595,2445.5,2445.2,0.01]
[1730852607394,4.08947,2445.3,2445.2,0.01]
[1730852607820,1.399335,2445.5,2445.3,0.00874132]
[1730852608024,4.08907,2445.6,2445.3,0.00874132]
[1730852608541,4.08919,2445.5,2445.3,0.00874132]
[1730852609398,4.08907,2445.6,2445.3,0.00874132]
[1730852609737,0.8152,2445.7,2445.2,0.01]
[1730852610057,4.08947,2445.3,2445.2,0.01]
[1730852610264,5.0,2445.6,2445.2,0.81094132]
[1730852610537,5.0,2445.6,2445.2,0.01874132]
[1730852610538,4.08947,2445.3,2445.2,0.01874132]
[1730852610717,4.67066,2445.5,2445.2,0.01874132]
[1730852610951,4.08947,2445.3,2445.0,0.01]
[1730852611119,4.08931,2445.4,2444.8,0.01874132]
[1730852611120,4.09014,2444.9,2444.8,0.01874132]
[1730852611331,8.18007,2445.0,2444.8,0.00874132]
[1730852611634,4.09014,2444.9,2444.8,0.00874132]
[1730852611987,4.09014,2444.9,2444.8,0.01874132]
[1730852612192,4.09,2445.0,2444.8,0.01874132]
[1730852612193,8.18009,2445.0,2444.8,0.01874132]
[1730852612622,4.09014,2444.9,2444.8,0.00874132]
[1730852612833,4.09014,2444.9,2444.8,0.01874132]
[1730852613039,4.908154,2444.9,2444.8,0.01]
[1730852613198,4.09014,2444.9,2444.8,0.01]
[1730852614246,4.09032,2444.8,2444.6,0.01874132]
[1730852614741,4.08926,2445.5,2445.1,0.80094132]
[1730852615044,4.907077,2445.5,2445.1,0.80094132]
[1730852615342,4.08925,2445.5,2445.2,0.01]
[1730852615543,4.08931,2445.4,2445.2,0.01]
[1730852615897,4.08947,2445.3,2445.2,0.01]
[1730852616097,4.08947,2445.3,2445.1,0.00874132]
[1730852616331,4.08947,2445.3,2445.2,0.01]
[1730852616857,9.08923,2445.5,2445.2,0.01]
[1730852616997,4.08932,2445.4,2445.2,0.01]
[1730852617312,9.08923,2445.5,2445.2,0.01]
[1730852617639,4.08891,2445.7,2445.2,0.01]
[1730852617640,4.089,2445.6,2445.2,0.01]
[1730852618143,4.089,2445.6,2445.3,0.00874132]
[1730852618329,4.08891,2445.7,2445.3,0.00874132]
[1730852618537,4.08891,2445.7,2445.3,0.80094132]
[1730852619103,4.03891,2445.7,2445.3,0.80094132]
[1730852619413,4.08901,2445.6,2445.3,0.7922]
[1730852619634,4.03891,2445.7,2445.4,0.00874132]
[1730852619815,5.7551,2445.8,2445.4,0.00874132]
[1730852620020,4.08881,2445.7,2445.4,0.00874132]
[1730852620400,4.08881,2445.7,2445.3,0.7922]
[1730852620630,4.08881,2445.7,2445.4,0.00874132]
[1730852622614,4.08923,2445.5,2445.3,0.00874132]
[1730852622809,9.571078,2445.7,2445.3,0.00874132]
[1730852623250,4.08908,2445.6,2445.3,0.00874132]
[1730852623432,5.482158,2445.7,2445.3,0.00874132]
[1730852623757,4.08914,2445.5,2445.3,0.00874132]
[1730852624151,10.0462698,2445.5,2445.2,0.01]
[1730852624460,9.08965,2445.2,2444.9,0.00874132]
[1730852624610,9.08965,2445.2,2445.1,0.01]
[1730852625612,0.7876,2445.3,2445.1,0.01874132]
[1730852625812,5.0,2445.5,2445.3,0.00874132]
[1730852626050,5.0,2445.5,2445.3,0.01874132]
[1730852626357,9.08919,2445.5,2445.3,0.01874132]
[1730852626657,5.0,2445.5,2445.3,0.01]
[1730852626949,14.166124,2445.5,2445.3,0.01]
[1730852627154,4.08931,2445.4,2445.3,0.01]
[1730852629230,10.076824,2445.5,2445.3,0.01]
[1730852629566,2.95568,2445.8,2445.4,0.00874132]
[1730852629797,0.7876,2446.8,2446.4,4.08762]
[1730852629930,0.7876,2447.1,2446.6,0.01]
[1730852630117,9.08619,2447.3,2446.6,4.0973]
[1730852630319,4.08647,2447.1,2446.6,0.01]
[1730852630614,9.08617,2447.3,2446.6,0.01]
[1730852630813,5.0,2447.3,2446.6,0.01]
[1730852631016,4.0869,2446.9,2446.6,0.01]
[1730852631324,4.08698,2446.8,2446.6,0.01]
[1730852631516,4.0869,2446.9,2446.6,0.01]
[1730852632154,8.17382,2446.9,2446.6,0.01]
[1730852632366,4.08747,2446.5,2446.4,0.01]
[1730852632676,4.08747,2446.5,2446.1,0.7847]
[1730852632817,0.0605952,2446.7,2446.5,4.08746]
[1730852633012,0.0605952,2446.7,2446.1,36.272014]
[1730852633013,4.1478252,2446.7,2446.1,40.360074]
[1730852633211,8.2350852,2446.7,2446.1,36.272014]
[1730852633468,8.2350852,2446.7,2446.1,40.360144]
[1730852633767,4.08731,2446.6,2446.1,36.272014]
[1730852633933,0.0605952,2446.7,2446.2,8.1239794]
[1730852634254,0.0605952,2446.7,2446.3,4.08764]
[1730852635226,0.0605952,2446.7,2446.5,4.87216]
[1730852635426,0.0605952,2446.7,2446.6,4.0873]
[1730852635912,0.0605952,2446.7,2446.6,5.422]
[1730852637566,0.0605952,2446.7,2446.6,4.872]
[1730852637770,0.0605952,2446.7,2446.6,6.41167558]
[1730852637952,0.0605952,2446.7,2446.6,6.329946]
[1730852638359,0.0605952,2446.7,2446.6,6.319946]
[1730852638535,0.0605952,2446.7,2446.6,1.682646]
[1730852638755,0.0605952,2446.7,2446.6,6.329946]
[1730852639078,4.9406852,2447.9,2446.6,6.329946]
[1730852639079,0.0605952,2447.9,2447.6,4.08563]
[1730852639292,0.0605952,2447.9,2447.8,8.4793]
[1730852639784,0.0605952,2447.9,2447.8,35.824]
[1730852640082,0.0605952,2447.9,2447.8,0.824]
[1730852640492,4.08548,2447.7,2447.4,0.824]
[1730852640781,4.08549,2447.7,2447.4,0.824]
[1730852641123,4.1458552,2447.9,2447.4,0.824]
[1730852641238,5.46892772,2447.9,2447.4,0.824]
[1730852641752,4.08532,2447.8,2447.4,0.824]
[1730852641955,1.38366772,2447.9,2447.1,0.824]
[1730852642182,0.0605952,2447.9,2447.3,3.70015396]
[1730852642476,0.0605952,2447.9,2447.7,4.90933]
[1730852642642,0.0605952,2447.9,2447.7,0.824]
[1730852643149,0.0605952,2447.9,2447.3,4.92005]
[1730852643341,0.0605952,2447.9,2447.4,4.08593]
[1730852643542,0.0605952,2447.9,2447.4,0.955592]
[1730852643934,4.08531,2447.8,2447.3,0.824]
[1730852644690,4.0856,2447.7,2447.3,0.824]
[1730852644976,0.0605952,2447.9,2447.4,0.08171463]
[1730852645178,4.08533,2447.8,2447.3,0.824]
[1730852645491,0.0605952,2447.9,2447.3,0.824]
[1730852646290,4.08534,2447.8,2447.3,0.824]
[1730852646779,0.0605952,2447.9,2447.4,0.08171128]
[1730852646985,0.0605952,2447.9,2447.6,4.08562]
[1730852647342,0.0605952,2447.9,2447.7,0.824]
[1730852648145,0.0605952,2447.9,2447.8,0.08169672]
[1730852648352,0.0605952,2447.9,2447.8,4.6453]
[1730852648553,0.0605952,2447.9,2447.8,1.8854774]
[1730852649315,0.0605952,2447.9,2447.8,9.87646372]
[1730852649634,5.7949,2449.8,2448.6,0.55]
[1730852649916,0.0605952,2450.4,2447.9,3.0]
[1730852649917,4.08396,2448.6,2448.4,35.0]
[1730852650217,4.08396,2448.6,2448.1,0.824]
[1730852650218,4.492356,2448.6,2448.1,0.824]
[1730852650418,4.0844,2448.4,2448.1,0.824]
[1730852650576,5.0,2448.9,2448.2,35.0]
[1730852650921,4.08443,2448.4,2448.1,0.824]
[1730852651519,4.08414,2448.5,2448.1,0.824]
[1730852651716,4.08363,2448.8,2448.1,0.824]
[1730852651900,4.08408,2448.6,2448.1,0.824]
[1730852652102,1.316698,2448.8,2448.2,4.1663172]
[1730852652103,4.08371,2448.8,2448.2,4.1663172]
[1730852652319,0.8554952,2449.1,2448.1,0.824]
[1730852652691,5.0,2448.9,2448.1,0.824]
[1730852652886,4.08345,2449.0,2448.1,0.824]
[1730852653145,0.0605952,2449.1,2448.5,0.55]
[1730852653299,0.0605952,2449.1,2448.6,4.08383]
[1730852653500,4.1437952,2449.1,2448.5,0.8204]
[1730852653818,4.08399,2448.6,2448.1,0.8204]
[1730852654199,0.7612,2448.8,2447.7,0.8204]
[1730852654200,4.08447,2448.3,2447.7,0.8204]
[1730852654404,4.08474,2448.2,2447.7,0.8204]
[1730852654990,8.1695,2448.2,2447.7,0.8204]
[1730852655192,4.0848,2448.1,2447.7,0.8204]
[1730852655416,4.08474,2448.2,2447.7,0.8204]
[1730852655641,8.16952,2448.2,2447.7,0.8204]
[1730852655808,4.08496,2448.0,2447.7,0.8204]
[1730852656006,4.08474,2448.2,2447.7,0.8204]
[1730852656318,4.08492,2448.1,2447.7,0.8204]
[1730852656515,4.993214,2448.2,2447.7,0.8204]
[1730852656893,4.08474,2448.2,2447.7,0.8204]
[1730852657333,9.08438,2448.4,2447.8,0.08170191]
[1730852657534,4.08438,2448.4,2447.8,4.08516]
[1730852657710,4.08438,2448.4,2447.7,0.90210191]
[1730852657711,4.08448,2448.3,2447.7,0.8204]
[1730852658089,4.08481,2448.1,2447.7,0.8204]
[1730852658405,4.08449,2448.3,2447.7,0.8204]
[1730852658603,4.08477,2448.2,2447.7,0.8204]
[1730852658900,4.08449,2448.3,2447.7,0.8204]
[1730852659105,4.08449,2448.3,2447.7,4.90585]
[1730852659311,4.08433,2448.4,2447.8,4.08529]
[1730852659632,4.08389,2448.7,2448.0,4.0848]
[1730852659835,4.0835,2448.9,2448.2,4.08453]
[1730852660043,4.0835,2448.9,2448.3,4.08433]
[1730852660424,4.0835,2448.9,2448.2,39.08453]
[1730852660425,4.08381,2448.7,2448.2,39.08453]
[1730852660612,4.08381,2448.7,2448.1,1.22888]
[1730852660959,9.08353,2448.9,2448.2,0.531374]
[1730852660960,4.08353,2448.9,2448.2,0.531374]
[1730852661237,0.8217952,2449.1,2448.5,4.0841]
[1730852661238,4.1438252,2449.1,2448.5,4.0841]
[1730852661420,0.0605952,2449.1,2448.5,4.0841]
[1730852661590,0.0605952,2449.1,2448.6,4.90435]
[1730852661793,0.0605952,2449.1,2448.6,0.8204]
[1730852662450,0.0605952,2449.1,2448.7,0.08167316]
[1730852662591,0.0605952,2449.1,2449.0,4.90369]
[1730852662798,0.0605952,2449.1,2449.0,5.394059]
[1730852663031,4.08204,2449.8,2449.0,5.394059]
[1730852663032,4.08204,2449.8,2449.2,4.08285]
[1730852663239,4.84292,2450.0,2449.3,4.08268]
[1730852663439,5.0,2450.1,2449.2,4.08285]
[1730852663718,0.7612,2450.3,2449.1,0.8304]
[1730852663870,0.7612,2450.3,2449.6,4.08219]
[1730852663871,4.08131,2450.2,2449.6,4.08219]
[1730852664066,4.08131,2450.2,2449.6,4.08218]
[1730852664368,4.1416252,2450.4,2449.7,0.8204]
[1730852664776,4.08113,2450.3,2449.7,0.8204]
[1730852664928,5.0,2450.3,2449.4,0.8204]
[1730852665271,4.08213,2449.7,2449.4,0.8204]
[1730852665676,4.08193,2449.9,2449.4,0.8204]
[1730852665842,4.08187,2449.9,2449.4,0.8204]
[1730852666028,4.08213,2449.7,2449.4,0.8204]
[1730852666456,4.08231,2449.6,2449.1,0.8204]
[1730852666628,4.08179,2449.9,2449.1,0.8204]
[1730852666856,4.08316,2449.1,2448.7,0.8204]
[1730852667157,4.08266,2449.4,2448.8,4.08351]
[1730852667370,4.08122,2450.3,2449.4,0.8204]
[1730852667531,4.1416552,2450.4,2449.6,7.77728029]
[1730852667728,4.1416552,2450.4,2449.7,4.08203]
[1730852667975,0.0605952,2450.4,2449.8,0.8204]
[1730852668127,0.0605952,2450.4,2449.5,0.8204]
[1730852668128,5.0,2450.3,2449.5,0.8204]
[1730852668330,4.1417052,2450.4,2449.8,4.08186]
[1730852668532,4.08141,2450.2,2449.5,8.27702536]
[1730852668827,4.08141,2450.2,2449.6,4.08227]
[1730852669060,4.08174,2450.0,2449.5,0.11226536]
[1730852670124,4.08146,2450.1,2449.5,0.11226536]
[1730852670438,4.08214,2449.7,2449.5,0.11226536]
[1730852670659,4.08182,2449.9,2449.5,0.11226536]
[1730852670866,8.16375,2449.9,2449.5,0.11226536]
[1730852671170,4.08182,2449.9,2449.5,0.11226536]
[1730852671376,4.08186,2449.9,2449.2,4.08294]
[1730852671577,4.08186,2449.9,2449.3,4.84036]
[1730852671776,4.08208,2449.8,2449.3,0.7576]
[1730852671962,8.16377,2449.9,2449.3,0.7576]
[1730852672284,4.08213,2449.7,2449.3,0.7576]
[1730852672469,0.816377,2449.9,2449.3,0.7576]
[1730852672470,8.980207,2449.9,2449.3,0.7576]
[1730852672783,4.08214,2449.7,2449.3,0.7576]
[1730852673141,4.898267,2449.9,2449.3,0.7576]
[1730852673410,4.08155,2450.1,2449.3,4.84028]
[1730852673540,4.08179,2450.0,2449.4,0.55]
[1730852673738,4.08155,2450.1,2449.4,0.55]
[1730852674452,4.08155,2450.1,2449.5,4.08237]
[1730852674656,4.08156,2450.1,2449.4,4.08251]
[1730852674883,4.08164,2450.0,2449.4,4.93602103]
[1730852675183,4.08156,2450.1,2449.4,4.93602103]
[1730852675559,0.8719952,2450.4,2449.4,0.85351103]
[1730852675755,4.08143,2450.2,2449.5,4.08235]
[1730852675972,4.9530352,2450.4,2449.7,4.082]
[1730852676284,4.9530352,2450.4,2449.6,0.7576]
[1730852676285,0.0605952,2450.4,2449.8,4.5659]
[1730852676453,4.1415852,2450.4,2449.9,0.7576]
[1730852676844,4.08113,2450.3,2449.9,0.7576]
[1730852677358,4.1415552,2450.4,2449.9,0.7576]
[1730852677744,0.0605952,2450.4,2449.9,0.7576]
[1730852677941,4.1415952,2450.4,2449.9,0.7576]
[1730852678176,4.1415552,2450.4,2449.9,0.7576]
[1730852678446,0.0605952,2450.4,2449.9,5.731407]
[1730852678645,0.0605952,2450.4,2449.9,1.649757]
[1730852678871,8.16047,2450.9,2450.2,4.08128]
[1730852679071,4.08031,2450.8,2450.2,4.08128]
[1730852679267,4.08039,2450.8,2450.4,0.7576]
[1730852679472,4.08051,2450.7,2450.4,0.7576]
[1730852679784,4.08074,2450.6,2450.1,0.7576]
[1730852680114,4.08063,2450.6,2450.1,0.7576]
[1730852680976,4.08146,2450.1,2449.8,0.7576]
[1730852682468,4.08123,2450.3,2449.8,0.7576]
[1730852682670,4.8923,2450.5,2449.8,0.7576]
[1730852682873,4.0809,2450.5,2449.9,4.08165]
[1730852683117,4.0809,2450.5,2450.0,4.08161]
[1730852683275,4.0809,2450.5,2449.9,4.08165]
[1730852683473,4.08096,2450.4,2449.9,4.08165]
[1730852683671,4.08079,2450.5,2449.8,0.7576]
[1730852683922,4.08106,2450.4,2449.8,5.28467003]
[1730852684222,4.08079,2450.5,2449.8,0.7576]
[1730852684223,4.08114,2450.3,2449.8,0.7576]
[1730852684435,4.08132,2450.2,2449.8,0.7576]
[1730852684571,4.08114,2450.3,2449.8,0.7576]
[1730852684972,5.0,2450.5,2449.0,4.08329]
[1730852684973,4.83977,2449.5,2449.0,4.08329]
[1730852685171,0.7572,2449.9,2448.9,4.48670029]
[1730852685415,4.08196,2449.8,2449.3,0.7917]
[1730852685570,4.08213,2449.7,2449.3,0.7917]
[1730852685766,4.83913,2449.9,2449.3,4.87448]
[1730852686079,4.83913,2449.9,2449.3,0.7917]
[1730852686278,4.83913,2449.9,2449.3,4.87436]
[1730852686490,4.082,2449.8,2449.3,0.7917]
[1730852687284,4.082,2449.8,2449.4,35.0]
[1730852688132,4.08139,2450.2,2449.6,4.08225]
[1730852688406,7.83824,2450.4,2449.8,4.87365]
[1730852688407,4.83824,2450.4,2449.8,4.87365]
[1730852688612,4.08132,2450.2,2449.8,0.7917]
[1730852688837,4.08132,2450.2,2449.9,35.0]
[1730852688971,4.08132,2450.2,2449.8,0.7917]
[1730852689382,0.7572,2450.1,2449.4,0.7917]
[1730852689617,8.91932,2450.4,2449.9,4.08178]
[1730852689912,8.91932,2450.4,2449.5,4.08231]
[1730852689913,9.08142,2450.2,2449.5,4.08231]
[1730852690218,4.08157,2450.1,2449.5,4.08231]
[1730852690400,4.08157,2450.1,2449.6,4.08228]
[1730852690610,4.08157,2450.1,2449.5,4.08231]
[1730852690611,4.08157,2450.1,2449.5,43.16467]
[1730852690816,4.08157,2450.1,2449.5,39.08231]
[1730852691001,4.0812,2450.3,2449.5,43.28540348]
[1730852691207,4.08131,2450.2,2449.5,43.28540348]
[1730852691407,4.0812,2450.3,2449.8,0.7917]
[1730852691719,4.0809,2450.5,2449.8,0.7917]
[1730852692014,0.7572,2450.7,2449.8,0.7917]
[1730852692015,4.08067,2450.6,2450.0,4.08161]
[1730852692175,4.08082,2450.5,2450.0,0.77509619]
[1730852692690,4.08082,2450.5,2449.9,35.0]
[1730852692904,4.08082,2450.5,2450.0,4.08159]
[1730852693214,4.0807,2450.6,2450.0,4.08159]
[1730852693399,4.0807,2450.6,2450.0,8.16312]
[1730852693932,4.08083,2450.5,2450.0,4.08163]
[1730852694080,8.91838,2450.7,2450.1,3.908163]
[1730852694286,4.83776,2450.7,2450.1,7.989623]
[1730852694698,4.83776,2450.7,2450.1,3.908163]
[1730852694916,8.91832,2450.7,2450.1,7.989603]
[1730852695115,4.08073,2450.6,2450.1,3.908163]
[1730852695289,4.83776,2450.7,2450.0,4.08152]
[1730852695628,4.83776,2450.7,2450.0,4.08146]
[1730852695810,5.0,2450.4,2449.4,0.7917]
[1730852696013,4.83816,2450.5,2449.7,4.08203]
[1730852696218,4.08114,2450.3,2449.8,0.408203]
[1730852696587,4.08138,2450.2,2449.8,0.408203]
[1730852696788,4.08114,2450.3,2449.7,4.08208]
[1730852696989,4.8381,2450.5,2450.0,4.08158]
[1730852697325,0.7572,2450.8,2450.3,4.08101]
[1730852697560,2.04419309,2451.0,2450.9,4.08013]
[1730852697835,2.04419309,2451.0,2450.9,0.7917]
[1730852698181,2.04419309,2451.0,2450.7,0.8207]
[1730852698389,2.04419309,2451.0,2450.8,4.6519812]
[1730852698631,2.04419309,2451.0,2450.9,4.08013]
[1730852699792,2.04419309,2451.0,2450.9,5.45083]
[1730852700137,2.04419309,2451.0,2450.9,4.90083]
[1730852700786,2.04419309,2451.0,2450.9,5.54242539]
[1730852700986,0.0605952,2451.6,2451.5,4.07913]
[1730852701236,0.0605952,2451.6,2451.5,4.89983]
[1730852701388,0.0605952,2451.6,2451.1,4.07976]
[1730852701595,0.0605952,2451.6,2451.1,1.17649736]
[1730852701839,0.0605952,2451.6,2451.1,0.8207]
[1730852702136,8.15906,2451.3,2450.6,4.08061]
[1730852702433,4.07961,2451.3,2450.6,4.08062]
[1730852702618,5.0,2451.4,2450.7,0.08159927]